[Event "*** Titled Tuesday Blitz"]
[Site "Chess.com"]
[Date "2020.12.29"]
[Round "7"]
[White "Margency"]
[Black "GM4life"]
[Result "0-1"]
[WhiteElo "2586"]
[BlackElo "2445"]
[TimeControl "180+1"]
[EndTime "11:17:29 PST"]
[Termination "GM4life won by checkmate"]

1. e4 {[%clk 0:03:00.9]} 1... c5 {[%clk 0:02:58]} 2. Nf3 {[%clk 0:03:00.9]} 2...
d6 {[%clk 0:02:57.7]} 3. d4 {[%clk 0:03:01.2]} 3... cxd4 {[%clk 0:02:58.5]} 4.
Nxd4 {[%clk 0:03:02]} 4... Nf6 {[%clk 0:02:59]} 5. Nc3 {[%clk 0:03:02.4]} 5...
a6 {[%clk 0:02:59.6]} 6. Be3 {[%clk 0:03:01.7]} 6... e5 {[%clk 0:02:59.9]} 7.
Nb3 {[%clk 0:03:01.8]} 7... Be7 {[%clk 0:03:00.3]} 8. f3 {[%clk 0:03:02.1]} 8...
Be6 {[%clk 0:03:00.2]} 9. Qd2 {[%clk 0:03:02.3]} 9... O-O {[%clk 0:03:00.6]} 10.
O-O-O {[%clk 0:03:02.2]} 10... Nbd7 {[%clk 0:03:00.9]} 11. g4 {[%clk 0:03:02.1]}
11... b5 {[%clk 0:03:01.6]} 12. Rg1 {[%clk 0:02:57.4]} 12... b4 {[%clk
0:03:00.4]} 13. Nd5 {[%clk 0:02:57.4]} 13... Bxd5 {[%clk 0:02:58.3]} 14. exd5
{[%clk 0:02:57.5]} 14... a5 {[%clk 0:02:58.5]} 15. g5 {[%clk 0:02:52]} 15... Nh5
{[%clk 0:02:58.2]} 16. Kb1 {[%clk 0:02:51.3]} 16... Qb8 {[%clk 0:02:57]} 17. Rg4
{[%clk 0:02:45.6]} 17... Bd8 {[%clk 0:02:50.7]} 18. Rh4 {[%clk 0:02:18.5]} 18...
g6 {[%clk 0:02:50.6]} 19. Bh3 {[%clk 0:02:18]} 19... Nb6 {[%clk 0:02:38.9]} 20.
Re4 {[%clk 0:01:59.3]} 20... Qb7 {[%clk 0:02:18.4]} 21. Bg4 {[%clk 0:01:32.6]}
21... Ng7 {[%clk 0:02:17.7]} 22. h4 {[%clk 0:01:31.4]} 22... Nf5 {[%clk
0:02:15.3]} 23. Bf2 {[%clk 0:01:27.8]} 23... a4 {[%clk 0:01:54.1]} 24. Nc1
{[%clk 0:01:27.4]} 24... a3 {[%clk 0:01:54.2]} 25. b3 {[%clk 0:01:25.6]} 25...
Ra5 {[%clk 0:01:35.5]} 26. Bxb6 {[%clk 0:00:54.6]} 26... Bxb6 {[%clk 0:01:30.8]}
27. Bxf5 {[%clk 0:00:53.2]} 27... gxf5 {[%clk 0:01:26.3]} 28. Rxb4 {[%clk
0:00:52.6]} 28... Qa6 {[%clk 0:01:19.5]} 29. Qd3 {[%clk 0:00:49]} 29... Qxd3
{[%clk 0:01:11.2]} 30. Nxd3 {[%clk 0:00:45.9]} 30... Be3 {[%clk 0:00:58.7]} 31.
c4 {[%clk 0:00:34.8]} 31... Re8 {[%clk 0:00:55.5]} 32. Rb7 {[%clk 0:00:23.4]}
32... e4 {[%clk 0:00:55.8]} 33. fxe4 {[%clk 0:00:22.9]} 33... fxe4 {[%clk
0:00:56.1]} 34. Nb4 {[%clk 0:00:17.9]} 34... Bf2 {[%clk 0:00:53.2]} 35. Nc6
{[%clk 0:00:14]} 35... Raa8 {[%clk 0:00:48.2]} 36. Nd4 {[%clk 0:00:13.8]} 36...
Bxd4 {[%clk 0:00:27]} 37. Rxd4 {[%clk 0:00:13.8]} 37... e3 {[%clk 0:00:27.9]}
38. Rd1 {[%clk 0:00:14.5]} 38... e2 {[%clk 0:00:28.8]} 39. Re1 {[%clk
0:00:15.1]} 39... Re3 {[%clk 0:00:29.1]} 40. Kc2 {[%clk 0:00:15.6]} 40... Rae8
{[%clk 0:00:29.1]} 41. Rd7 {[%clk 0:00:14.8]} 41... R8e4 {[%clk 0:00:19.3]} 42.
Rxd6 {[%clk 0:00:13.9]} 42... Rxh4 {[%clk 0:00:19.9]} 43. c5 {[%clk 0:00:12.5]}
43... Rd4 {[%clk 0:00:18.1]} 44. c6 {[%clk 0:00:11.3]} 44... Rdd3 {[%clk
0:00:16.5]} 45. Rd8+ {[%clk 0:00:02]} 45... Kg7 {[%clk 0:00:16.9]} 46. Rd7
{[%clk 0:00:02.6]} 46... Kg6 {[%clk 0:00:15.9]} 47. c7 {[%clk 0:00:02.5]} 47...
Rc3+ {[%clk 0:00:15.7]} 48. Kb1 {[%clk 0:00:03]} 48... Red3 {[%clk 0:00:14.9]}
49. Rd6+ {[%clk 0:00:03]} 49... Kxg5 {[%clk 0:00:13.3]} 50. Rxe2 {[%clk
0:00:02.1]} 50... Rd1# {[%clk 0:00:13.3]} 0-1

[Event "*** Titled Tuesday Blitz"]
[Site "Chess.com"]
[Date "2020.12.29"]
[Round "7"]
[White "LilRag"]
[Black "alexrustemov"]
[Result "0-1"]
[WhiteElo "2483"]
[BlackElo "2676"]
[TimeControl "180+1"]
[EndTime "11:17:31 PST"]
[Termination "alexrustemov won by resignation"]

1. c4 {[%clk 0:03:00.9]} 1... g6 {[%clk 0:02:59.7]} 2. Nc3 {[%clk 0:02:59.5]}
2... Bg7 {[%clk 0:03:00.1]} 3. Nf3 {[%clk 0:02:57.8]} 3... c5 {[%clk 0:03:00.6]}
4. d4 {[%clk 0:02:38.4]} 4... cxd4 {[%clk 0:03:01.5]} 5. Nxd4 {[%clk 0:02:39.3]}
5... Nc6 {[%clk 0:03:01.4]} 6. Nc2 {[%clk 0:02:23.5]} 6... Bxc3+ {[%clk
0:03:00.5]} 7. bxc3 {[%clk 0:02:22.6]} 7... Qa5 {[%clk 0:03:01.1]} 8. Bd2 {[%clk
0:02:21.8]} 8... Nf6 {[%clk 0:03:00.5]} 9. Nb4 {[%clk 0:02:13.7]} 9... d6 {[%clk
0:02:56.9]} 10. g3 {[%clk 0:02:08.4]} 10... Ne5 {[%clk 0:02:54]} 11. e3 {[%clk
0:01:56.2]} 11... Bg4 {[%clk 0:02:47.9]} 12. Be2 {[%clk 0:01:55.3]} 12... Bxe2
{[%clk 0:02:47.1]} 13. Qxe2 {[%clk 0:01:56.2]} 13... Qc5 {[%clk 0:02:46.9]} 14.
O-O {[%clk 0:01:52.1]} 14... Qxc4 {[%clk 0:02:46.1]} 15. Rfe1 {[%clk 0:01:49.6]}
15... Qxe2 {[%clk 0:02:44.8]} 16. Rxe2 {[%clk 0:01:50.5]} 16... Rc8 {[%clk
0:02:39.1]} 17. Rb1 {[%clk 0:01:47]} 17... Nf3+ {[%clk 0:02:35.4]} 18. Kg2
{[%clk 0:01:45.7]} 18... Nxd2 {[%clk 0:02:35.9]} 19. Rxd2 {[%clk 0:01:46.6]}
19... Rxc3 {[%clk 0:02:35.6]} 20. Nd5 {[%clk 0:01:39.7]} 20... Nxd5 {[%clk
0:02:32.7]} 21. Rxd5 {[%clk 0:01:37.2]} 21... Rc7 {[%clk 0:02:26.6]} 22. Ra5
{[%clk 0:01:31.2]} 22... a6 {[%clk 0:02:23.3]} 23. Rxa6 {[%clk 0:01:29.5]} 23...
bxa6 {[%clk 0:02:03.1]} 24. Rb8+ {[%clk 0:01:28.4]} 24... Kd7 {[%clk 0:02:03.5]}
25. Rxh8 {[%clk 0:01:29.3]} 25... h5 {[%clk 0:02:01.5]} 26. Ra8 {[%clk
0:01:28.5]} 26... Rc6 {[%clk 0:02:00.1]} 27. Kf3 {[%clk 0:01:26]} 27... d5
{[%clk 0:01:55.6]} 28. h3 {[%clk 0:01:22.4]} 28... e5 {[%clk 0:01:53.4]} 29. g4
{[%clk 0:01:19.6]} 29... hxg4+ {[%clk 0:01:50.4]} 30. hxg4 {[%clk 0:01:20.1]}
30... g5 {[%clk 0:01:35.3]} 31. Rg8 {[%clk 0:01:11.7]} 31... f6 {[%clk
0:01:32.6]} 32. Ra8 {[%clk 0:01:10.1]} 32... Kc7 {[%clk 0:01:30.6]} 33. Kg3
{[%clk 0:01:03.8]} 33... Kb6 {[%clk 0:01:26.8]} 34. Kf3 {[%clk 0:01:02.7]} 34...
Kb5 {[%clk 0:01:25.4]} 35. Rd8 {[%clk 0:01:00.3]} 35... Kc4 {[%clk 0:01:24.8]}
36. Rd7 {[%clk 0:00:50]} 36... Re6 {[%clk 0:01:14.5]} 37. Rc7+ {[%clk
0:00:46.6]} 37... Kb4 {[%clk 0:01:07.1]} 38. Rc2 {[%clk 0:00:46.1]} 38... Rd6
{[%clk 0:00:58.3]} 39. Ke2 {[%clk 0:00:36.8]} 39... a5 {[%clk 0:00:41.7]} 40.
Kd3 {[%clk 0:00:32.3]} 40... a4 {[%clk 0:00:41.9]} 41. f3 {[%clk 0:00:24.9]}
41... Ka3 {[%clk 0:00:41.5]} 42. Ke2 {[%clk 0:00:15.1]} 42... Rb6 {[%clk
0:00:41.5]} 43. Kd3 {[%clk 0:00:15.3]} 43... Rd6 {[%clk 0:00:29.6]} 44. Ke2
{[%clk 0:00:13.9]} 44... d4 {[%clk 0:00:30.1]} 45. Kd3 {[%clk 0:00:13.2]} 45...
dxe3+ {[%clk 0:00:27.6]} 46. Kxe3 {[%clk 0:00:13.3]} 46... Rb6 {[%clk
0:00:26.7]} 47. Ke4 {[%clk 0:00:12.9]} 47... Rb4+ {[%clk 0:00:26.2]} 48. Ke3
{[%clk 0:00:11.8]} 48... Rb2 {[%clk 0:00:25]} 49. Rc6 {[%clk 0:00:11.4]} 49...
Kxa2 {[%clk 0:00:21.7]} 50. Rxf6 {[%clk 0:00:11.7]} 50... a3 {[%clk 0:00:22]}
51. Ra6 {[%clk 0:00:11.7]} 51... Rb4 {[%clk 0:00:19.2]} 52. Ra5 {[%clk
0:00:10.5]} 52... Kb3 {[%clk 0:00:19.5]} 53. Kd2 {[%clk 0:00:09.3]} 53... a2
{[%clk 0:00:18.3]} 54. Kc1 {[%clk 0:00:07.7]} 54... Rc4+ {[%clk 0:00:18.4]} 55.
Kd2 {[%clk 0:00:07.6]} 55... Ra4 {[%clk 0:00:18.5]} 0-1

[Event "*** Titled Tuesday Blitz"]
[Site "Chess.com"]
[Date "2020.12.29"]
[Round "7"]
[White "chessuriel"]
[Black "eCztery"]
[Result "0-1"]
[WhiteElo "2228"]
[BlackElo "2367"]
[TimeControl "180+1"]
[EndTime "11:17:31 PST"]
[Termination "eCztery won by resignation"]

1. e4 {[%clk 0:03:00.9]} 1... c5 {[%clk 0:02:55.6]} 2. Nf3 {[%clk 0:03:01.2]}
2... Nc6 {[%clk 0:02:55.7]} 3. d4 {[%clk 0:03:01.6]} 3... cxd4 {[%clk
0:02:56.6]} 4. Nxd4 {[%clk 0:03:02.1]} 4... g6 {[%clk 0:02:57.2]} 5. Nc3 {[%clk
0:03:01.3]} 5... Bg7 {[%clk 0:02:54.3]} 6. Nb3 {[%clk 0:03:01.5]} 6... d6 {[%clk
0:02:53.8]} 7. g4 {[%clk 0:02:59.9]} 7... Nf6 {[%clk 0:02:49.6]} 8. g5 {[%clk
0:02:56.9]} 8... Nd7 {[%clk 0:02:47.5]} 9. h4 {[%clk 0:02:56.1]} 9... Nde5
{[%clk 0:02:44.7]} 10. f4 {[%clk 0:02:52.2]} 10... Bg4 {[%clk 0:02:37.6]} 11.
Be2 {[%clk 0:02:52.3]} 11... Bxe2 {[%clk 0:02:28.4]} 12. Qxe2 {[%clk 0:02:53.2]}
12... Nd7 {[%clk 0:02:26.6]} 13. h5 {[%clk 0:02:52.9]} 13... Nd4 {[%clk
0:02:18.3]} 14. Nxd4 {[%clk 0:02:38.8]} 14... Bxd4 {[%clk 0:02:19.2]} 15. hxg6
{[%clk 0:02:24.8]} 15... hxg6 {[%clk 0:02:17.9]} 16. Rxh8+ {[%clk 0:02:25.7]}
16... Bxh8 {[%clk 0:02:18.7]} 17. Qh2 {[%clk 0:02:22.3]} 17... Bg7 {[%clk
0:02:13.9]} 18. Bd2 {[%clk 0:02:17.6]} 18... Qb6 {[%clk 0:02:02.3]} 19. O-O-O
{[%clk 0:02:03.4]} 19... O-O-O {[%clk 0:02:00.8]} 20. Qh7 {[%clk 0:02:02.2]}
20... Bd4 {[%clk 0:01:56.1]} 21. Qxf7 {[%clk 0:01:59.9]} 21... Nc5 {[%clk
0:01:46.5]} 22. Qxg6 {[%clk 0:01:54.3]} 22... Kb8 {[%clk 0:01:46.4]} 23. Qf5
{[%clk 0:01:29.9]} 23... e6 {[%clk 0:01:45.9]} 24. Qh7 {[%clk 0:01:27.6]} 24...
Rc8 {[%clk 0:01:43.7]} 25. g6 {[%clk 0:01:23.7]} 25... Nxe4 {[%clk 0:01:43.7]}
26. g7 {[%clk 0:01:17]} 26... Nxc3 {[%clk 0:01:42.3]} 27. bxc3 {[%clk
0:01:07.7]} 27... Bc5 {[%clk 0:01:34.7]} 28. Be1 {[%clk 0:00:55.1]} 28... Be3+
{[%clk 0:01:17.3]} 29. Bd2 {[%clk 0:00:52.9]} 29... Bc5 {[%clk 0:01:16.8]} 30.
Rh1 {[%clk 0:00:34.5]} 30... Ba3+ {[%clk 0:00:48]} 31. Kd1 {[%clk 0:00:33.6]}
31... Qf2 {[%clk 0:00:48.9]} 32. g8=Q {[%clk 0:00:23.1]} 32... Qf3+ {[%clk
0:00:46.8]} 33. Ke1 {[%clk 0:00:21.1]} 33... Bc5 {[%clk 0:00:47.7]} 34. Qxc8+
{[%clk 0:00:15.6]} 34... Kxc8 {[%clk 0:00:48.6]} 35. Qg8+ {[%clk 0:00:15.1]}
35... Kc7 {[%clk 0:00:47.6]} 36. Qg7+ {[%clk 0:00:15.3]} 36... Kb6 {[%clk
0:00:46]} 37. Rf1 {[%clk 0:00:15.1]} 37... Qe4+ {[%clk 0:00:38.7]} 38. Kd1
{[%clk 0:00:15.3]} 38... Qc4 {[%clk 0:00:39.6]} 39. Qg2 {[%clk 0:00:14.7]} 39...
d5 {[%clk 0:00:36.3]} 40. Qe2 {[%clk 0:00:14.8]} 40... Qxa2 {[%clk 0:00:35.5]}
41. Qxe6+ {[%clk 0:00:15.1]} 41... Kb5 {[%clk 0:00:33.3]} 42. Ke2 {[%clk
0:00:14.8]} 42... Qc4+ {[%clk 0:00:32.5]} 43. Kf3 {[%clk 0:00:13.6]} 43... Qxf1+
{[%clk 0:00:32.3]} 44. Kg4 {[%clk 0:00:13.6]} 44... Qg2+ {[%clk 0:00:32.4]} 45.
Kf5 {[%clk 0:00:13.2]} 45... Qxd2 {[%clk 0:00:33.3]} 46. Qd7+ {[%clk 0:00:12.8]}
46... Ka6 {[%clk 0:00:31.9]} 47. Qa4+ {[%clk 0:00:11.9]} 47... Kb6 {[%clk
0:00:31.9]} 48. Qb3+ {[%clk 0:00:11.8]} 48... Kc7 {[%clk 0:00:32.3]} 49. Qa4
{[%clk 0:00:10.7]} 49... Qxc3 {[%clk 0:00:30.8]} 50. Ke6 {[%clk 0:00:08]} 50...
Bb6 {[%clk 0:00:26.1]} 51. Qd7+ {[%clk 0:00:04.9]} 51... Kb8 {[%clk 0:00:25.5]}
52. Qd6+ {[%clk 0:00:04.9]} 52... Qc7 {[%clk 0:00:24.9]} 53. Qf8+ {[%clk
0:00:04.7]} 53... Qc8+ {[%clk 0:00:25]} 54. Qxc8+ {[%clk 0:00:04.2]} 54... Kxc8
{[%clk 0:00:25.9]} 0-1

[Event "*** Titled Tuesday Blitz"]
[Site "Chess.com"]
[Date "2020.12.29"]
[Round "7"]
[White "swisspower96"]
[Black "SHIVACalypso"]
[Result "1-0"]
[WhiteElo "2668"]
[BlackElo "2470"]
[TimeControl "180+1"]
[EndTime "11:17:34 PST"]
[Termination "swisspower96 won by resignation"]

1. d4 {[%clk 0:03:00.9]} 1... e6 {[%clk 0:03:00]} 2. c4 {[%clk 0:03:00.4]} 2...
Nf6 {[%clk 0:02:59.6]} 3. Nf3 {[%clk 0:02:43.6]} 3... d5 {[%clk 0:02:57.8]} 4.
g3 {[%clk 0:02:43.4]} 4... Be7 {[%clk 0:02:57.5]} 5. Bg2 {[%clk 0:02:43.4]} 5...
O-O {[%clk 0:02:57.2]} 6. Nc3 {[%clk 0:02:44]} 6... dxc4 {[%clk 0:02:44.1]} 7.
Ne5 {[%clk 0:02:43.5]} 7... c5 {[%clk 0:02:36.7]} 8. dxc5 {[%clk 0:02:38.3]}
8... Qxd1+ {[%clk 0:02:35.1]} 9. Nxd1 {[%clk 0:02:39.2]} 9... Bxc5 {[%clk
0:02:34.1]} 10. O-O {[%clk 0:02:28.8]} 10... Nc6 {[%clk 0:02:18.8]} 11. Nxc6
{[%clk 0:02:15.9]} 11... bxc6 {[%clk 0:02:19.7]} 12. Be3 {[%clk 0:02:16.2]}
12... Bb6 {[%clk 0:02:14.9]} 13. Rc1 {[%clk 0:02:12.9]} 13... Ba6 {[%clk
0:02:08.1]} 14. Bxb6 {[%clk 0:02:10]} 14... axb6 {[%clk 0:02:07.7]} 15. Bxc6
{[%clk 0:02:10.5]} 15... Rac8 {[%clk 0:02:07]} 16. Bf3 {[%clk 0:02:10.7]} 16...
Rfd8 {[%clk 0:02:03.2]} 17. Rc2 {[%clk 0:02:02.9]} 17... Kf8 {[%clk 0:01:56.9]}
18. a3 {[%clk 0:02:03]} 18... Ke7 {[%clk 0:01:54.6]} 19. Nc3 {[%clk 0:02:02.5]}
19... Rd6 {[%clk 0:01:39.7]} 20. Rfc1 {[%clk 0:01:56.1]} 20... b5 {[%clk
0:01:32.6]} 21. Na2 {[%clk 0:01:55.4]} 21... Rcd8 {[%clk 0:01:27.3]} 22. Nb4
{[%clk 0:01:51.8]} 22... Nd5 {[%clk 0:01:26.4]} 23. Kg2 {[%clk 0:00:59.4]} 23...
Bb7 {[%clk 0:01:19.6]} 24. Na2 {[%clk 0:00:56.8]} 24... Ba6 {[%clk 0:01:12.5]}
25. e3 {[%clk 0:00:54]} 25... f5 {[%clk 0:00:47]} 26. h4 {[%clk 0:00:52.8]}
26... g6 {[%clk 0:00:45.5]} 27. Kg1 {[%clk 0:00:42]} 27... e5 {[%clk 0:00:45]}
28. e4 {[%clk 0:00:36.1]} 28... Nf6 {[%clk 0:00:40]} 29. exf5 {[%clk 0:00:36.2]}
29... e4 {[%clk 0:00:32.2]} 30. Bg2 {[%clk 0:00:36.3]} 30... gxf5 {[%clk
0:00:32.3]} 31. Bh3 {[%clk 0:00:36.7]} 31... Ke6 {[%clk 0:00:29.3]} 32. Nc3
{[%clk 0:00:35.5]} 32... Ke5 {[%clk 0:00:27.2]} 33. Kf1 {[%clk 0:00:28.2]} 33...
Rd2 {[%clk 0:00:26.9]} 34. Ke1 {[%clk 0:00:28.4]} 34... R2d3 {[%clk 0:00:24.9]}
35. Bf1 {[%clk 0:00:27.7]} 35... R3d4 {[%clk 0:00:21.3]} 36. Ne2 {[%clk
0:00:27]} 36... R4d6 {[%clk 0:00:20.2]} 37. Nf4 {[%clk 0:00:26.7]} 37... Nd5
{[%clk 0:00:20]} 38. Nxd5 {[%clk 0:00:24.8]} 38... Rxd5 {[%clk 0:00:20.9]} 39.
Be2 {[%clk 0:00:23.1]} 39... Rd4 {[%clk 0:00:17.9]} 40. Ra1 {[%clk 0:00:23.3]}
40... Bb7 {[%clk 0:00:17.1]} 41. a4 {[%clk 0:00:22.9]} 41... Bc6 {[%clk
0:00:12.7]} 42. axb5 {[%clk 0:00:22.4]} 42... Bxb5 {[%clk 0:00:13.6]} 43. Ra5
{[%clk 0:00:22.9]} 43... R8d5 {[%clk 0:00:13]} 44. Rc3 {[%clk 0:00:21]} 44...
Bc6 {[%clk 0:00:11.1]} 45. Ra6 {[%clk 0:00:19.7]} 45... Rc5 {[%clk 0:00:10.8]}
46. b4 {[%clk 0:00:17.1]} 46... Rb5 {[%clk 0:00:04.3]} 47. Rxc6 {[%clk
0:00:16.2]} 47... Rxb4 {[%clk 0:00:04.4]} 48. Rc1 {[%clk 0:00:14]} 48... Kd5
{[%clk 0:00:03.2]} 49. Rc8 {[%clk 0:00:14.2]} 49... Rb3 {[%clk 0:00:03.6]} 50.
Bxc4+ {[%clk 0:00:12.9]} 1-0

[Event "*** Titled Tuesday Blitz"]
[Site "Chess.com"]
[Date "2020.12.29"]
[Round "7"]
[White "jacky72"]
[Black "Shepherdboy"]
[Result "1/2-1/2"]
[WhiteElo "2777"]
[BlackElo "2362"]
[TimeControl "180+1"]
[EndTime "11:17:36 PST"]
[Termination "Game drawn by repetition"]

1. d4 {[%clk 0:03:00.9]} 1... d5 {[%clk 0:02:59]} 2. c4 {[%clk 0:03:00.8]} 2...
dxc4 {[%clk 0:02:58.9]} 3. Nf3 {[%clk 0:03:00.7]} 3... Nf6 {[%clk 0:02:57]} 4.
e3 {[%clk 0:03:01]} 4... e6 {[%clk 0:02:51.7]} 5. Bxc4 {[%clk 0:03:01.4]} 5...
c5 {[%clk 0:02:50.9]} 6. O-O {[%clk 0:03:01.7]} 6... a6 {[%clk 0:02:50]} 7. Nc3
{[%clk 0:03:01.8]} 7... Nc6 {[%clk 0:02:40.3]} 8. Bb3 {[%clk 0:03:00.2]} 8...
Be7 {[%clk 0:02:31.7]} 9. d5 {[%clk 0:02:59.3]} 9... exd5 {[%clk 0:02:26.5]} 10.
Nxd5 {[%clk 0:03:00.2]} 10... O-O {[%clk 0:02:21.9]} 11. Nxe7+ {[%clk
0:02:58.1]} 11... Qxe7 {[%clk 0:02:21.7]} 12. h3 {[%clk 0:02:56.4]} 12... Ne4
{[%clk 0:02:17.2]} 13. Qe2 {[%clk 0:02:50.5]} 13... Bf5 {[%clk 0:02:14.8]} 14.
Nd2 {[%clk 0:02:48.7]} 14... Rad8 {[%clk 0:02:08.8]} 15. Nxe4 {[%clk 0:02:48.3]}
15... Bxe4 {[%clk 0:02:09.7]} 16. Bc2 {[%clk 0:02:48.7]} 16... Rfe8 {[%clk
0:02:03.4]} 17. b3 {[%clk 0:02:39.6]} 17... Bxc2 {[%clk 0:01:59.1]} 18. Qxc2
{[%clk 0:02:39.1]} 18... Nb4 {[%clk 0:02:00]} 19. Qc3 {[%clk 0:02:38.2]} 19...
Rd3 {[%clk 0:01:55.6]} 20. Qc4 {[%clk 0:02:38.1]} 20... Red8 {[%clk 0:01:55.6]}
21. Bb2 {[%clk 0:02:29]} 21... Rd2 {[%clk 0:01:55.5]} 22. Ba3 {[%clk 0:02:03.4]}
22... b5 {[%clk 0:01:43.5]} 23. Qc1 {[%clk 0:01:52.6]} 23... a5 {[%clk
0:01:37.7]} 24. Bxb4 {[%clk 0:01:52.3]} 24... axb4 {[%clk 0:01:36.8]} 25. a3
{[%clk 0:01:52]} 25... bxa3 {[%clk 0:01:31.9]} 26. Qxa3 {[%clk 0:01:52.9]} 26...
b4 {[%clk 0:01:27.4]} 27. Qa5 {[%clk 0:01:52]} 27... g6 {[%clk 0:01:21.7]} 28.
Qb6 {[%clk 0:01:50]} 28... Kg7 {[%clk 0:01:12]} 29. Ra7 {[%clk 0:01:44.9]} 29...
Qd6 {[%clk 0:01:08.6]} 30. Qb5 {[%clk 0:01:37.8]} 30... Qd5 {[%clk 0:01:03.8]}
31. Rc7 {[%clk 0:01:34.3]} 31... Rc2 {[%clk 0:01:01.5]} 32. Qb6 {[%clk
0:01:17.7]} 32... Rd6 {[%clk 0:00:56]} 33. Qb8 {[%clk 0:01:14.6]} 33... Qxb3
{[%clk 0:00:51.3]} 34. Rxc5 {[%clk 0:01:14.5]} 34... Rxc5 {[%clk 0:00:47.6]} 35.
Qxd6 {[%clk 0:01:14.8]} 35... Rd5 {[%clk 0:00:42.4]} 36. Qc6 {[%clk 0:01:12.3]}
36... Rd1 {[%clk 0:00:38]} 37. Rxd1 {[%clk 0:01:06.6]} 37... Qxd1+ {[%clk
0:00:38.9]} 38. Kh2 {[%clk 0:01:07.5]} 38... Qa1 {[%clk 0:00:31.6]} 39. Qb5
{[%clk 0:00:39.4]} 39... Qc3 {[%clk 0:00:30.8]} 40. Kg3 {[%clk 0:00:39.9]} 40...
b3 {[%clk 0:00:25.4]} 41. Kf3 {[%clk 0:00:40.3]} 41... b2 {[%clk 0:00:20.9]} 42.
g4 {[%clk 0:00:40.2]} 42... Qf6+ {[%clk 0:00:13.9]} 43. Ke2 {[%clk 0:00:39.5]}
43... Qc3 {[%clk 0:00:13.5]} 44. Kf3 {[%clk 0:00:37.6]} 44... h5 {[%clk
0:00:13.1]} 45. gxh5 {[%clk 0:00:36]} 45... gxh5 {[%clk 0:00:12.6]} 46. Qg5+
{[%clk 0:00:34.3]} 46... Kh8 {[%clk 0:00:12.5]} 47. Qxh5+ {[%clk 0:00:33.7]}
47... Kg8 {[%clk 0:00:11.6]} 48. Qg5+ {[%clk 0:00:32.7]} 48... Kh8 {[%clk
0:00:10.7]} 49. Qb5 {[%clk 0:00:31.2]} 49... Kg7 {[%clk 0:00:09.4]} 50. h4
{[%clk 0:00:28.5]} 50... Qc2 {[%clk 0:00:09]} 51. Qg5+ {[%clk 0:00:28.4]} 51...
Kh8 {[%clk 0:00:08.1]} 52. Qh6+ {[%clk 0:00:24.6]} 52... Kg8 {[%clk 0:00:08.1]}
53. Qg5+ {[%clk 0:00:24.7]} 53... Kf8 {[%clk 0:00:07.9]} 54. Qd8+ {[%clk
0:00:24.4]} 54... Kg7 {[%clk 0:00:08.1]} 55. Qg5+ {[%clk 0:00:24]} 55... Kf8
{[%clk 0:00:07.9]} 56. Qd8+ {[%clk 0:00:23.5]} 56... Kg7 {[%clk 0:00:08.1]} 57.
Qg5+ {[%clk 0:00:23.8]} 1/2-1/2

[Event "*** Titled Tuesday Blitz"]
[Site "Chess.com"]
[Date "2020.12.29"]
[Round "7"]
[White "Loy_Konstantin"]
[Black "Martins-BR"]
[Result "0-1"]
[WhiteElo "2385"]
[BlackElo "2286"]
[TimeControl "180+1"]
[EndTime "11:17:36 PST"]
[Termination "Martins-BR won by resignation"]

1. e4 {[%clk 0:02:58.5]} 1... c5 {[%clk 0:02:59.1]} 2. Nf3 {[%clk 0:02:58.4]}
2... Nc6 {[%clk 0:02:59.3]} 3. Nc3 {[%clk 0:02:57.1]} 3... g6 {[%clk 0:02:57.8]}
4. d4 {[%clk 0:02:50.5]} 4... cxd4 {[%clk 0:02:57.7]} 5. Nxd4 {[%clk 0:02:51.4]}
5... Bg7 {[%clk 0:02:57.9]} 6. Be3 {[%clk 0:02:51.8]} 6... Nf6 {[%clk
0:02:57.6]} 7. Bc4 {[%clk 0:02:51.8]} 7... O-O {[%clk 0:02:56.8]} 8. Bb3 {[%clk
0:02:52.2]} 8... d6 {[%clk 0:02:56]} 9. f3 {[%clk 0:02:49.7]} 9... Bd7 {[%clk
0:02:55]} 10. h4 {[%clk 0:02:49.5]} 10... h5 {[%clk 0:02:53]} 11. Qd2 {[%clk
0:02:48.9]} 11... Na5 {[%clk 0:02:52.2]} 12. O-O-O {[%clk 0:02:46.4]} 12...
Nxb3+ {[%clk 0:02:51.6]} 13. Nxb3 {[%clk 0:02:44.7]} 13... a5 {[%clk 0:02:46.6]}
14. a3 {[%clk 0:02:33.7]} 14... b5 {[%clk 0:02:44]} 15. Nd5 {[%clk 0:02:28.7]}
15... Nxd5 {[%clk 0:02:36.6]} 16. Qxd5 {[%clk 0:02:27.4]} 16... b4 {[%clk
0:02:32.5]} 17. axb4 {[%clk 0:02:09.8]} 17... axb4 {[%clk 0:02:30.3]} 18. g4
{[%clk 0:01:57.9]} 18... Be6 {[%clk 0:02:26.3]} 19. Qd3 {[%clk 0:01:55.5]} 19...
hxg4 {[%clk 0:02:22.1]} 20. h5 {[%clk 0:01:55.1]} 20... gxf3 {[%clk 0:02:13.2]}
21. Bd4 {[%clk 0:01:51.1]} 21... g5 {[%clk 0:02:04.4]} 22. Bxg7 {[%clk
0:01:40.2]} 22... Kxg7 {[%clk 0:02:03.8]} 23. h6+ {[%clk 0:01:40.4]} 23... Kh8
{[%clk 0:01:58.8]} 24. Qxf3 {[%clk 0:01:30.3]} 24... Bxb3 {[%clk 0:01:45.8]} 25.
Qxb3 {[%clk 0:01:28.6]} 25... f6 {[%clk 0:01:40.6]} 26. Qxb4 {[%clk 0:01:19]}
26... Qc7 {[%clk 0:01:31.2]} 27. Qb3 {[%clk 0:01:00.7]} 27... Rfc8 {[%clk
0:01:08.2]} 28. h7 {[%clk 0:00:27.2]} 28... Qc6 {[%clk 0:00:58]} 29. Rde1 {[%clk
0:00:16.5]} 29... Qc5 {[%clk 0:00:54.1]} 30. Kd2 {[%clk 0:00:10.7]} 30... Qd4+
{[%clk 0:00:52.5]} 31. Qd3 {[%clk 0:00:09.5]} 31... Qxb2 {[%clk 0:00:50.7]} 32.
Rb1 {[%clk 0:00:09.5]} 32... Qa3 {[%clk 0:00:47.9]} 33. Rb7 {[%clk 0:00:08.7]}
33... Qa5+ {[%clk 0:00:47.6]} 34. Ke2 {[%clk 0:00:08.2]} 34... Qe5 {[%clk
0:00:47.4]} 35. Rb5 {[%clk 0:00:03.3]} 35... Qf4 {[%clk 0:00:45.7]} 36. Rf5
{[%clk 0:00:03]} 36... Qg4+ {[%clk 0:00:45]} 37. Kd2 {[%clk 0:00:02.5]} 37...
Ra2 {[%clk 0:00:43.4]} 38. Rhf1 {[%clk 0:00:01.8]} 38... Raxc2+ {[%clk
0:00:41.6]} 39. Qxc2 {[%clk 0:00:02.2]} 39... Rxc2+ {[%clk 0:00:40.4]} 40. Kxc2
{[%clk 0:00:03.1]} 40... Qxe4+ {[%clk 0:00:40.6]} 41. Kc3 {[%clk 0:00:03]} 41...
Kxh7 {[%clk 0:00:40.7]} 42. R5f3 {[%clk 0:00:03.4]} 42... Qc6+ {[%clk
0:00:39.4]} 43. Kd2 {[%clk 0:00:03.1]} 43... Kg7 {[%clk 0:00:39.4]} 44. Re3
{[%clk 0:00:03.2]} 44... e5 {[%clk 0:00:38]} 45. Rc1 {[%clk 0:00:02.9]} 45...
Qb6 {[%clk 0:00:36.4]} 46. Rec3 {[%clk 0:00:03.1]} 46... d5 {[%clk 0:00:35.2]}
47. Rc6 {[%clk 0:00:02.9]} 47... Qb4+ {[%clk 0:00:34.2]} 48. Ke3 {[%clk
0:00:02.8]} 48... Qf4+ {[%clk 0:00:33.1]} 49. Ke2 {[%clk 0:00:02.9]} 49... d4
{[%clk 0:00:31.6]} 50. Rc7+ {[%clk 0:00:02.7]} 50... Kg6 {[%clk 0:00:31.1]} 51.
Rc8 {[%clk 0:00:03.1]} 51... e4 {[%clk 0:00:29.1]} 52. Rg8+ {[%clk 0:00:02.2]}
52... Kf5 {[%clk 0:00:24.4]} 53. Rf1 {[%clk 0:00:01.8]} 53... d3+ {[%clk
0:00:24.4]} 54. Ke1 {[%clk 0:00:02.1]} 54... d2+ {[%clk 0:00:24.6]} 55. Ke2
{[%clk 0:00:02.6]} 55... Qxf1+ {[%clk 0:00:24.7]} 56. Kxf1 {[%clk 0:00:02.7]}
56... d1=Q+ {[%clk 0:00:24.7]} 0-1